fUST/lending_fUST_20250717
["ID","MTS","AMOUNT","RATE_DAILY","PERIOD"]
[372695129,1752742263263,-460.0,0.00020446,2]
[372695130,1752742263272,-460.0,0.00020446,2]
[372695131,1752742263282,-460.0,0.00020446,2]
[372695132,1752742263292,-1350.01,0.00020447,2]
[372695133,1752742263301,-151.0,0.00020447,2]
[372695134,1752742263311,-2451.099952,0.00020447,2]
[372695135,1752742263321,-2451.099952,0.00020447,2]
[372695136,1752742263331,-2500.0,0.00020464,2]
[372695137,1752742263341,-151.0,0.00020468,2]
[372695138,1752742263351,-151.0,0.00020468,2]
[372695139,1752742263360,-239.969387,0.00020468,2]
[372695140,1752742263371,-151.0,0.00020468,2]
[372695141,1752742263381,-1501.99373843,0.00020468,2]
[372695142,1752742263391,-500.85482562,0.00020468,2]
[372695143,1752742263402,-1500.0,0.00020468,2]
[372695144,1752742263411,-500.0,0.00020468,2]
[372695145,1752742263421,-505.91447423,0.00020468,2]
[372695146,1752742263431,-1503.88661494,0.00020468,2]
[372695147,1752742263441,-1500.0,0.00020468,2]
[372695148,1752742263451,-545.06842376,0.00020468,2]
[372695149,1752742263460,-1501.31897078,0.00020468,2]
[372695150,1752742263470,-1500.0,0.00020468,2]
[372695151,1752742263481,-1503.03402176,0.00020468,2]
[372695152,1752742263491,-1352.55003994,0.00020468,2]
[372695153,1752742263501,-1485.20083709,0.00020468,2]
[372695154,1752742263512,-1503.15503428,0.00020468,2]
[372695155,1752742263523,-1547.17701977,0.00020468,2]
[372695156,1752742263533,-1500.0,0.00020468,2]
[372695157,1752742263543,-1500.0,0.00020468,2]
[372695158,1752742263553,-1500.0,0.00020468,2]
[372695159,1752742263563,-13187.91523847,0.00020555,3]
[372695160,1752742263572,-1072.93699164,0.00020568,2]
[372695161,1752742263583,-680.0,0.00020603,2]
[372695162,1752742263601,-460.0,0.00020611,2]
[372695163,1752742263610,-460.0,0.00020611,2]
[372695164,1752742263626,-2160.9,0.00020611,2]
[372695165,1752742263635,-309.08056786,0.00020612,2]
[372695166,1752742263645,-460.0,0.00020613,2]
[372695167,1752742263655,-500.0,0.00020613,2]
[372695168,1752742263665,-4972.9,0.00020613,2]
[372695169,1752742263678,-3346.2,0.00020613,2]
[372695170,1752742263694,-781.73,0.00020613,2]
[372695171,1752742263704,-519.8135976,0.00020613,2]
[372695172,1752742263713,-460.0,0.00020613,2]
[372695173,1752742263722,-2840.52,0.00020613,2]
[372695174,1752742263734,-2577.85,0.00020613,2]
[372695175,1752742263743,-460.0,0.00020613,2]
[372695176,1752742263753,-1173.34,0.00020613,2]
[372695177,1752742263762,-711.25,0.00020613,2]
[372695178,1752742263772,-460.0,0.00020613,2]
[372695179,1752742263782,-514.54,0.00020615,2]
[372695180,1752742263791,-1060.78,0.00020615,2]
[372695181,1752742263802,-460.0,0.00020615,2]
[372695182,1752742263813,-831.12,0.00020615,2]
[372695183,1752742263822,-460.0,0.00020615,2]
[372695184,1752742263831,-612.68961887,0.00020615,2]
[372695185,1752742263998,-1169.13999398,0.00018144,2]
[372695186,1752742264009,-1169.13999398,0.00018144,2]
[372695187,1752742264019,-1169.13999398,0.00018144,2]
[372695188,1752742264028,-94.66038113,0.00020615,2]
[372695189,1752742264038,-800.29,0.00020615,2]
[372695190,1752742264049,-1001.39,0.00020615,2]
[372695191,1752742264059,-637.99,0.00020615,2]
[372695192,1752742264068,-460.0,0.00020615,2]
[372695193,1752742264078,-460.0,0.00020615,2]
[372695194,1752742264089,-449.3,0.00020616,2]
[372695195,1752742264099,-460.0,0.00020616,2]
[372695196,1752742264110,-2113.72738664,0.00020616,2]
[372695197,1752742264120,-2000.0,0.00020616,2]
[372695198,1752742264129,-579.71,0.00020622,2]
[372695199,1752742264138,-491.54,0.00020622,2]
[372695200,1752742264148,-460.0,0.00020622,2]
[372695201,1752742264158,-516.69,0.00020622,2]
[372695202,1752742264168,-460.0,0.00020622,2]
[372695203,1752742264178,-597.14,0.00020622,2]
[372695204,1752742264187,-460.0,0.00020622,2]
[372695205,1752742264198,-680.0,0.00020644,2]
[372695206,1752742264207,-5000.0,0.00020646,2]
[372695207,1752742264216,-460.0,0.00020681,2]
[372695208,1752742264227,-151.0,0.000207,4]
[372695209,1752742264236,-3894.02,0.00020719,2]
[372695210,1752742264247,-988.81,0.00020719,2]
[372695211,1752742264256,-1519.82,0.00020719,2]
[372695212,1752742264266,-460.0,0.00020719,2]
[372695213,1752742264276,-1835.66,0.00020719,2]
[372695214,1752742264286,-460.74,0.00020719,2]
[372695215,1752742264296,-1041.54,0.00020719,2]
[372695216,1752742264306,-1673.12,0.00020719,2]
[372695217,1752742264316,-460.0,0.0002072,2]
[372695218,1752742264325,-460.0,0.0002072,2]
[372695219,1752742264335,-460.0,0.0002072,2]
[372695220,1752742264345,-226.77,0.0002072,2]
[372695221,1752742264355,-652.94,0.0002072,2]
[372695222,1752742264364,-654.61,0.0002072,2]
[372695223,1752742264375,-653.79,0.0002072,2]
[372695224,1752742264384,-460.0,0.0002072,2]
[372695225,1752742264394,-460.0,0.0002072,2]
[372695226,1752742264404,-585.48,0.0002072,2]
[372695227,1752742264414,-539.65977616,0.0002072,2]
[372695228,1752742264424,-460.0,0.0002072,2]
[372695229,1752742264434,-819.09,0.0002072,2]
[372695230,1752742264445,-460.0,0.0002072,2]
[372695231,1752742264455,-460.0,0.0002072,2]
[372695232,1752742264465,-460.0,0.0002072,2]
[372695233,1752742264474,-151.0,0.00020721,2]
[372695234,1752742264483,-151.0,0.00020721,2]
[372695235,1752742264493,-151.306194,0.00020721,2]
[372695236,1752742264503,-151.0,0.00020721,2]
[372695237,1752742264513,-216.661554,0.00020721,2]
[372695238,1752742264523,-151.0,0.00020721,2]
[372695239,1752742264533,-151.0,0.00020721,2]
[372695240,1752742264542,-198.112528,0.00020721,2]
[372695241,1752742264552,-198.112528,0.00020721,2]
[372695242,1752742264562,-173.018346,0.00020721,2]
[372695243,1752742264572,-173.018346,0.00020721,2]
[372695244,1752742264582,-151.916457,0.00020721,2]
[372695245,1752742264591,-1350.01,0.00020721,2]
[372695246,1752742264601,-506.442148,0.00020721,2]
[372695247,1752742264611,-506.442148,0.00020721,2]
[372695248,1752742264623,-207.644531,0.00020721,2]
[372695249,1752742264633,-207.644531,0.00020721,2]
[372695250,1752742264642,-890.036706,0.00020721,2]
[372695251,1752742264653,-890.036706,0.00020721,2]
[372695252,1752742264664,-500.0,0.00020808,2]
[372695253,1752742264673,-680.0,0.00020818,2]
[372695254,1752742264682,-154.370341,0.00020822,2]
[372695255,1752742264691,-154.370341,0.00020822,2]
[372695256,1752742264705,-13187.91523847,0.00020831,4]
[372695257,1752742264828,-151.0,0.00020865,2]
[372695258,1752742264839,-151.0,0.00020865,2]
[372695259,1752742264848,-151.0,0.00020865,2]
[372695260,1752742264857,-151.0,0.00020865,2]
[372695261,1752742264866,-460.0,0.00020885,2]
[372695262,1752742264878,-460.0,0.00020885,2]
[372695263,1752742264888,-2160.9,0.00020885,2]
[372695264,1752742264898,-460.0,0.00020887,2]
[372695265,1752742264908,-500.0,0.00020887,2]
[372695266,1752742264918,-4972.9,0.00020887,2]
[372695267,1752742264927,-3346.2,0.00020887,2]
[372695268,1752742264937,-781.73,0.00020887,2]
[372695269,1752742264946,-460.0,0.00020887,2]
[372695270,1752742264956,-2840.52,0.00020887,2]
[372695271,1752742264967,-2577.85,0.00020887,2]
[372695272,1752742264978,-460.0,0.00020887,2]
[372695273,1752742264987,-1173.34,0.00020887,2]
[372695274,1752742264996,-711.25,0.00020887,2]
[372695275,1752742265005,-233.24,0.00020887,2]
[372695276,1752742265015,-151.0,0.00020889,2]
[372695277,1752742265025,-1060.78,0.00020889,2]
[372695278,1752742265034,-460.0,0.00020889,2]
[372695279,1752742265043,-831.12,0.00020889,2]
[372695280,1752742265052,-460.0,0.00020889,2]
[372695281,1752742265062,-385.76817,0.00020889,2]
[372695282,1752742265073,-385.76817,0.00020889,2]
[372695283,1752742265082,-707.35,0.00020889,2]
[372695284,1752742265091,-800.29,0.00020889,2]
[372695285,1752742265101,-1001.39,0.00020889,2]
[372695286,1752742265111,-637.99,0.00020889,2]
[372695287,1752742265121,-460.0,0.00020889,2]
[372695288,1752742265130,-460.0,0.00020889,2]
[372695289,1752742265139,-579.71,0.00020896,2]
[372695290,1752742265148,-491.54,0.00020896,2]
[372695291,1752742265157,-460.0,0.00020896,2]
[372695292,1752742265166,-460.0,0.00020896,2]
[372695293,1752742265175,-597.14,0.00020896,2]
[372695294,1752742265184,-260.17,0.00020896,2]
[372695295,1752742265193,-292.4,0.00020931,4]
[372695296,1752742265202,-3894.02,0.00020993,2]
[372695297,1752742265212,-988.81,0.00020993,2]
[372695298,1752742265221,-1519.82,0.00020993,2]
[372695299,1752742265230,-460.0,0.00020993,2]
[372695300,1752742265239,-1835.66,0.00020993,2]
[372695301,1752742265248,-460.74,0.00020993,2]
[372695302,1752742265258,-1041.54,0.00020993,2]
[372695303,1752742265267,-1673.12,0.00020993,2]
[372695304,1752742265277,-460.0,0.00020994,2]
[372695305,1752742265287,-460.0,0.00020994,2]
[372695306,1752742265296,-179.49,0.00020994,2]
[372695307,1752742265306,-652.94,0.00020994,2]
[372695308,1752742265316,-654.61,0.00020994,2]
[372695309,1752742265325,-653.79,0.00020994,2]
[372695310,1752742265334,-460.0,0.00020994,2]
[372695311,1752742265344,-363.654998,0.00020994,2]
[372695312,1752742265353,-585.48,0.00020994,2]
[372695313,1752742265362,-460.0,0.00020994,2]
[372695314,1752742265373,-819.09,0.00020994,2]
[372695315,1752742265383,-460.0,0.00020994,2]
[372695316,1752742265392,-460.0,0.00020994,2]
[372695317,1752742265402,-151.0,0.00020995,2]
[372695318,1752742265411,-165.21691,0.00020995,2]
[372695319,1752742265421,-507.655114,0.00020995,2]
[372695320,1752742265430,-165.21691,0.00020995,2]
[372695321,1752742265440,-507.655114,0.00020995,2]
[372695322,1752742265449,-151.0,0.00020995,2]
[372695323,1752742265459,-1350.01,0.00020995,2]
[372695324,1752742265468,-4023.20517626,0.00020997,2]
[372695325,1752742265478,-151.0,0.00020999,2]
[372695326,1752742265487,-151.0,0.00020999,2]
[372695327,1752742265497,-197.746617,0.00020999,2]
[372695328,1752742265507,-197.746617,0.00020999,2]
[372695329,1752742265516,-561.575187,0.00021,3]
[372695330,1752742265526,-3000.0,0.00021012,2]
[372695331,1752742265535,-2000.0,0.00021016,2]
[372695332,1752742265546,-2000.0,0.00021016,2]
[372695333,1752742265556,-2000.0,0.00021016,2]
[372695334,1752742265565,-2000.0,0.00021016,2]
[372695335,1752742265574,-2000.0,0.00021016,2]
[372695336,1752742265584,-2000.0,0.00021016,2]
[372695337,1752742265594,-680.0,0.00021033,2]
[372695338,1752742265604,-151.0,0.00021068,2]
[372695339,1752742265615,-151.0,0.00021068,2]
[372695340,1752742265628,-151.0,0.00021068,2]
[372695341,1752742265638,-151.0,0.00021068,2]
[372695342,1752742265647,-413.11418,0.00021068,2]
[372695343,1752742265657,-151.0,0.00021068,2]
[372695344,1752742265668,-413.11418,0.00021068,2]
[372695345,1752742265679,-151.0,0.00021068,2]
[372695346,1752742265688,-1208.03025,0.00021069,8]
[372695347,1752742265699,-151.0,0.00021069,2]
[372695348,1752742265711,-2451.099952,0.00021069,2]
[372695349,1752742265722,-2451.099952,0.00021069,2]
[372695350,1752742265732,-13187.91523847,0.00021107,4]
[372695351,1752742265740,-680.0,0.00021137,2]
[372695352,1752742265751,-460.0,0.00021159,2]
[372695353,1752742265762,-460.0,0.00021159,2]
[372695354,1752742265771,-2160.9,0.00021159,2]
[372695355,1752742265781,-460.0,0.00021161,2]
[372695356,1752742265792,-519.88,0.00021161,2]
[372695357,1752742265802,-151.0,0.00021161,2]
[372695358,1752742265812,-151.0,0.00021161,2]
[372695359,1752742265822,-4972.9,0.00021161,2]
[372695360,1752742265833,-151.0,0.00021161,2]
[372695361,1752742265844,-3346.2,0.00021161,2]
[372695362,1752742265856,-781.73,0.00021161,2]
[372695363,1752742265866,-487.75924152,0.00021161,2]
[372695364,1752742265876,-2840.52,0.00021161,2]
[372695365,1752742265886,-2577.85,0.00021161,2]
[372695366,1752742265896,-460.0,0.00021161,2]
[372695367,1752742265907,-1173.34,0.00021161,2]
[372695368,1752742265916,-711.25,0.00021161,2]
[372695369,1752742265925,-1060.78,0.00021163,2]
[372695370,1752742265935,-460.0,0.00021163,2]
[372695371,1752742265944,-831.12,0.00021163,2]
[372695372,1752742265954,-460.0,0.00021163,2]
[372695373,1752742265964,-707.35,0.00021163,2]
[372695374,1752742265974,-800.29,0.00021163,2]
[372695375,1752742265984,-1001.39,0.00021163,2]
[372695376,1752742265995,-637.99,0.00021163,2]
[372695377,1752742266006,-460.0,0.00021163,2]
[372695378,1752742266016,-2500.0,0.00021164,2]
[372695379,1752742266025,-579.71,0.0002117,2]
[372695380,1752742266035,-491.54,0.0002117,2]
[372695381,1752742266045,-460.0,0.0002117,2]
[372695382,1752742266054,-460.0,0.0002117,2]
[372695383,1752742266065,-597.14,0.0002117,2]
[372695384,1752742266075,-680.0,0.00021172,2]
[372695385,1752742266085,-159.7589236,0.00021184,2]
[372695386,1752742266094,-159.7589233,0.00021184,2]
[372695387,1752742266104,-159.7589235,0.00021184,2]
[372695388,1752742266113,-153.0,0.00021204,2]
[372695389,1752742266125,-153.0,0.00021204,2]
[372695390,1752742266134,-560.0,0.00021229,2]
[372695391,1752742266144,-151.0,0.00021267,2]
[372695392,1752742266153,-161.88026,0.00021267,2]
[372695393,1752742266162,-326.763875,0.00021267,2]
[372695394,1752742266171,-326.763875,0.00021267,2]
[372695395,1752742266181,-340.057027,0.00021267,2]
[372695396,1752742266190,-3894.02,0.00021267,2]
[372695397,1752742266199,-988.81,0.00021267,2]
[372695398,1752742266208,-1519.82,0.00021267,2]
[372695399,1752742266218,-460.0,0.00021267,2]
[372695400,1752742266227,-1835.66,0.00021267,2]
[372695401,1752742266238,-460.74,0.00021267,2]
[372695402,1752742266247,-1041.54,0.00021267,2]
[372695403,1752742266256,-1673.12,0.00021267,2]
[372695404,1752742266265,-502.42699781,0.00021268,2]
[372695405,1752742266275,-460.0,0.00021268,2]
[372695406,1752742266284,-652.94,0.00021268,2]
[372695407,1752742266293,-654.61,0.00021268,2]
[372695408,1752742266303,-653.79,0.00021268,2]
[372695409,1752742266312,-585.48,0.00021268,2]
[372695410,1752742266322,-460.0,0.00021268,2]
[372695411,1752742266331,-819.09,0.00021268,2]
[372695412,1752742266341,-470.97988062,0.00021268,2]
[372695413,1752742266351,-460.0,0.00021268,2]
[372695414,1752742266360,-1350.01,0.00021269,2]
[372695415,1752742266372,-154.370341,0.00021273,2]
[372695416,1752742266381,-154.370341,0.00021273,2]
[372695417,1752742266391,-151.0,0.00021273,2]
[372695418,1752742266401,-170.229647,0.00021273,2]
[372695419,1752742266410,-170.229647,0.00021273,2]
[372695420,1752742266419,-151.0,0.00021273,2]
[372695421,1752742266429,-151.0,0.00021273,2]
[372695422,1752742266439,-223.026461,0.00021273,2]
[372695423,1752742266449,-223.026461,0.00021273,2]
[372695424,1752742266459,-151.0,0.00021273,2]
[372695425,1752742266469,-160.0,0.0002132,3]
[372695426,1752742266480,-800.0,0.00021338,2]
[372695427,1752742266493,-680.0,0.00021345,2]
[372695428,1752742266503,-151.0,0.0002137,2]
[372695429,1752742266512,-151.0,0.0002137,2]
[372695430,1752742266521,-151.0,0.0002137,2]
[372695431,1752742266531,-151.0,0.0002137,2]
[372695432,1752742266540,-151.0,0.0002137,2]
[372695433,1752742266550,-184.65009936,0.0002137,2]
[372695434,1752742266560,-151.0,0.0002137,2]
[372695435,1752742266570,-151.0,0.0002137,2]
[372695436,1752742266579,-262.01277808,0.0002137,2]
[372695437,1752742266589,-1596.0,0.0002137,2]
[372695438,1752742266599,-500.0,0.0002137,2]
[372695439,1752742266608,-500.0,0.0002137,2]
[372695440,1752742266620,-500.0,0.0002137,2]
[372695441,1752742266633,-500.0,0.0002137,2]
[372695442,1752742266642,-151.0,0.0002137,2]
[372695443,1752742266652,-151.0,0.0002137,2]
[372695444,1752742266663,-151.0,0.0002137,2]
[372695445,1752742266673,-500.0,0.0002137,2]
[372695446,1752742266684,-151.0,0.0002137,2]
[372695447,1752742266695,-151.0,0.0002137,2]
[372695448,1752742266705,-500.0,0.0002137,2]
[372695449,1752742266715,-500.0,0.0002137,2]
[372695450,1752742266724,-500.0,0.0002137,2]
[372695451,1752742266734,-500.0,0.0002137,2]
[372695452,1752742266744,-500.0,0.0002137,2]
[372695453,1752742266754,-500.0,0.0002137,2]
[372695454,1752742266763,-151.0,0.0002137,2]
[372695455,1752742266772,-669.0,0.0002137,2]
[372695456,1752742266782,-151.0,0.0002137,2]
[372695457,1752742266791,-151.0,0.0002137,2]
[372695458,1752742266801,-151.0,0.0002137,2]
[372695459,1752742266810,-500.0,0.0002137,2]
[372695460,1752742266821,-500.0,0.0002137,2]
[372695461,1752742266830,-151.0,0.0002137,2]
[372695462,1752742266839,-151.0,0.0002137,2]
[372695463,1752742266848,-151.0,0.0002137,2]
[372695464,1752742266858,-151.0,0.0002137,2]
[372695465,1752742266867,-13187.91523847,0.00021383,5]
[372695466,1752742266879,-561.575187,0.00021408,2]
[372695467,1752742266888,-292.4,0.00021429,4]
[372695468,1752742266898,-460.0,0.00021433,2]
[372695469,1752742266907,-460.0,0.00021433,2]
[372695470,1752742266917,-2160.9,0.00021433,2]
[372695471,1752742266926,-460.0,0.00021435,2]
[372695472,1752742266937,-4972.9,0.00021435,2]
[372695473,1752742266947,-3346.2,0.00021435,2]
[372695474,1752742266960,-781.73,0.00021435,2]
[372695475,1752742266969,-2840.52,0.00021435,2]
[372695476,1752742266979,-2577.85,0.00021435,2]
[372695477,1752742266988,-460.0,0.00021435,2]
[372695478,1752742266998,-1173.34,0.00021435,2]
[372695479,1752742267008,-711.25,0.00021435,2]
[372695480,1752742267018,-1060.78,0.00021437,2]
[372695481,1752742267027,-460.0,0.00021437,2]
[372695482,1752742267036,-831.12,0.00021437,2]
[372695483,1752742267045,-460.0,0.00021437,2]
[372695484,1752742267055,-707.35,0.00021437,2]
[372695485,1752742267167,-800.29,0.00021437,2]
[372695486,1752742267177,-1001.39,0.00021437,2]
[372695487,1752742267186,-637.99,0.00021437,2]
[372695488,1752742267195,-460.0,0.00021437,2]
[372695489,1752742267204,-173.018346,0.00021444,2]
[372695490,1752742267214,-173.018346,0.00021444,2]
[372695491,1752742267223,-579.71,0.00021444,2]
[372695492,1752742267232,-506.442148,0.00021444,2]
[372695493,1752742267242,-506.442148,0.00021444,2]
[372695494,1752742267251,-491.54,0.00021444,2]
[372695495,1752742267260,-460.0,0.00021444,2]
[372695496,1752742267273,-460.0,0.00021444,2]
[372695497,1752742267283,-597.14,0.00021444,2]
[372695498,1752742267295,-207.644531,0.00021444,2]
[372695499,1752742267305,-207.644531,0.00021444,2]
[372695500,1752742267318,-890.036706,0.00021444,2]
[372695501,1752742267327,-890.036706,0.00021444,2]
[372695502,1752742267337,-680.0,0.00021454,2]
[372695503,1752742267346,-858.1897352,0.00021485,2]
[372695504,1752742267355,-10315.58859926,0.000215,2]
[372695505,1752742267365,-963.14075282,0.000215,2]
[372695506,1752742267375,-233.0,0.0002152,2]
[372695507,1752742267385,-3894.02,0.00021541,2]
[372695508,1752742267394,-988.81,0.00021541,2]
[372695509,1752742267403,-1519.82,0.00021541,2]
[372695510,1752742267412,-460.0,0.00021541,2]
[372695511,1752742267422,-1835.66,0.00021541,2]
[372695512,1752742267432,-460.74,0.00021541,2]
[372695513,1752742267441,-1041.54,0.00021541,2]
[372695514,1752742267451,-1673.12,0.00021541,2]
[372695515,1752742267461,-460.0,0.00021542,2]
[372695516,1752742267470,-652.94,0.00021542,2]
[372695517,1752742267479,-654.61,0.00021542,2]
[372695518,1752742267489,-653.79,0.00021542,2]
[372695519,1752742267499,-585.48,0.00021542,2]
[372695520,1752742267508,-380.6,0.00021542,2]
[372695521,1752742267517,-819.09,0.00021542,2]
[372695522,1752742267527,-386.89800061,0.00021542,2]
[372695523,1752742267537,-1350.01,0.00021543,2]
[372695524,1752742267546,-4328.0,0.00021543,2]
[372695525,1752742267555,-151.0,0.00021545,2]
[372695526,1752742267565,-385.76817,0.00021545,2]
[372695527,1752742267575,-385.76817,0.00021545,2]
[372695528,1752742267584,-151.0,0.00021547,2]
[372695529,1752742267594,-151.0,0.00021547,2]
[372695530,1752742267603,-151.0,0.00021547,2]
[372695531,1752742267613,-164.267142,0.00021547,2]
[372695532,1752742267627,-1000.0,0.00021553,5]
[372695533,1752742267637,-3500.0,0.0002156,2]
[372695534,1752742267646,-2500.0,0.00021564,2]
[372695535,1752742267656,-2500.0,0.00021564,2]
[372695536,1752742267667,-2500.0,0.00021564,2]
[372695537,1752742267677,-2500.0,0.00021564,2]
[372695538,1752742267687,-1789.48901587,0.00021564,2]
[372695539,1752742267697,-2500.0,0.00021564,2]
[372695540,1752742267707,-680.0,0.00021583,2]
[372695541,1752742267717,-587.0,0.00021595,2]
[372695542,1752742267727,-4328.0,0.0002161,2]
[372695543,1752742267736,-17369.74617564,0.00021612,2]
[372695544,1752742267746,-151.0,0.00021612,2]
[372695545,1752742267756,-151.0,0.00021612,2]
[372695546,1752742267765,-151.0,0.00021612,2]
[372695547,1752742267774,-151.0,0.00021612,2]
[372695548,1752742267783,-151.0,0.00021612,2]
[372695549,1752742267793,-151.0,0.00021612,2]
[372695550,1752742267803,-2451.099952,0.00021612,2]
[372695551,1752742267812,-2451.099952,0.00021612,2]
[372695552,1752742267822,-162.95721284,0.00021644,2]
[372695553,1752742267831,-201.71044239,0.00021644,2]
[372695554,1752742267841,-151.0,0.00021644,2]
[372695555,1752742267850,-151.0,0.00021644,2]
[372695556,1752742267860,-1596.0,0.00021644,2]
[372695557,1752742267869,-500.0,0.00021644,2]
[372695558,1752742267882,-500.0,0.00021644,2]
[372695559,1752742267891,-500.0,0.00021644,2]
[372695560,1752742267900,-151.0,0.00021644,2]
[372695561,1752742267910,-151.0,0.00021644,2]
[372695562,1752742267920,-500.0,0.00021644,2]
[372695563,1752742267929,-500.0,0.00021644,2]
[372695564,1752742267939,-500.0,0.00021644,2]
[372695565,1752742267948,-500.0,0.00021644,2]
[372695566,1752742267959,-500.0,0.00021644,2]
[372695567,1752742267969,-500.0,0.00021644,2]
[372695568,1752742267978,-669.0,0.00021644,2]
[372695569,1752742267988,-151.0,0.00021644,2]
[372695570,1752742267998,-199.48917632,0.00021644,2]
[372695571,1752742268008,-198.99179917,0.00021644,2]
[372695572,1752742268018,-500.0,0.00021644,2]
[372695573,1752742268032,-500.0,0.00021644,2]
[372695574,1752742268043,-151.0,0.00021644,2]
[372695575,1752742268054,-151.0,0.00021644,2]
[372695576,1752742268063,-151.0,0.00021644,2]
[372695577,1752742268073,-151.0,0.00021644,2]
[372695578,1752742268083,-162.128645,0.00021644,2]
[372695579,1752742268092,-165.21691,0.00021644,2]
[372695580,1752742268102,-507.655114,0.00021644,2]
[372695581,1752742268112,-165.21691,0.00021644,2]
[372695582,1752742268123,-507.655114,0.00021644,2]
[372695583,1752742268133,-151.0,0.00021644,2]
[372695584,1752742268144,-317.0,0.00021644,2]
[372695585,1752742268154,-317.0,0.00021651,2]
[372695586,1752742268163,-680.0,0.00021658,2]
[372695587,1752742268173,-151.0,0.00021658,2]
[372695588,1752742268182,-151.0,0.00021658,2]
[372695589,1752742268192,-151.0,0.00021658,2]
[372695590,1752742268201,-151.0,0.00021658,2]
[372695591,1752742268211,-413.11418,0.00021658,2]
[372695592,1752742268220,-151.0,0.00021658,2]
[372695593,1752742268230,-413.11418,0.00021658,2]
[372695594,1752742268239,-151.0,0.00021658,2]
[372695595,1752742268248,-13187.91523847,0.00021659,5]
[372695596,1752742268258,-151.0,0.00021664,2]
[372695597,1752742268268,-151.0,0.00021664,2]
[372695598,1752742268278,-151.0,0.00021664,2]
[372695599,1752742268288,-4023.20517626,0.0002169,2]
[372695600,1752742268299,-7825.9889641,0.00021697,2]
[372695601,1752742268308,-151.0,0.00021697,2]
[372695602,1752742268319,-19313.41483182,0.00021697,2]
[372695603,1752742268329,-151.0,0.00021697,2]
[372695604,1752742268338,-151.0,0.00021697,2]
[372695605,1752742268347,-151.0,0.00021697,2]
[372695606,1752742268357,-151.0,0.00021697,2]
[372695607,1752742268367,-151.0,0.00021697,2]
[372695608,1752742268379,-198.112528,0.00021697,2]
[372695609,1752742268388,-198.112528,0.00021697,2]
[372695610,1752742268398,-151.0,0.00021697,2]
[372695611,1752742268407,-151.0,0.00021697,2]
[372695612,1752742268417,-197.746617,0.00021697,2]
[372695613,1752742268426,-197.746617,0.00021697,2]
[372695614,1752742268436,-215.0738,0.00021704,2]
[372695615,1752742268445,-460.0,0.00021707,2]
[372695616,1752742268455,-460.0,0.00021707,2]
[372695617,1752742268464,-2160.9,0.00021707,2]
[372695618,1752742268474,-460.0,0.00021709,2]
[372695619,1752742268483,-4972.9,0.00021709,2]
[372695620,1752742268493,-3346.2,0.00021709,2]
[372695621,1752742268502,-781.73,0.00021709,2]
[372695622,1752742268512,-2840.52,0.00021709,2]
[372695623,1752742268522,-2577.85,0.00021709,2]
[372695624,1752742268531,-460.0,0.00021709,2]
[372695625,1752742268541,-1173.34,0.00021709,2]
[372695626,1752742268550,-711.25,0.00021709,2]
[372695627,1752742268560,-1060.78,0.00021711,2]
[372695628,1752742268569,-460.0,0.00021711,2]